{"text_format":"3","workbook":"xlsx","n_sheets":4,"sheets":["Start","Utgifter","Inntekter","Sammendrag"],"not_rendered":{"charts":1,"defined_names":2},"read":"whole","date_system":"1900"}

{"sheet":"Start","index":0,"n_rows":8,"n_cols":2,"rows_kept":8}
[null,"OM DENNE MALEN"]
[null,"Bruk denne Arrangementsbudsjett-arbeidsboken til å spore påløpte utgifter og inntekter i løpet av et arrangement."]
[null,"Fyll ut arrangementsnavn og skriv inn detaljer i tabellene i Utgifter- og Inntekter-regnearket."]
[null,"Totale utgifter og Totale inntekter beregnes automatisk."]
[null,"Fortjeneste og tap-sammendrag og diagram oppdateres automatisk i Sammendrag-regnearket."]
[null,"Obs! "]
[null,"Flere instruksjoner finnes i kolonne A i hvert regneark. Denne teksten er med hensikt skjult. Hvis du vil fjerne teksten, velger du kolonne A og deretter SLETT. Hvis du vil vise teksten, velger du kolonne A og endrer deretter skriftfarge."]
[null,"Hvis du vil finne ut mer om tabeller, trykker du på SKIFT og deretter på F10 i en tabell. Velg alternativet TABELL, og velg deretter ALTERNATIV TEKST."]

{"sheet":"Utgifter","index":1,"n_rows":33,"n_cols":8,"rows_kept":33,"merged":[[0,5,0,7],[1,1,1,7],[2,6,2,7]]}
["Skriv inn beregnet og faktisk utgifter for hver kategori i de respektive tabellene i dette regnearket. Totale utgifter beregnes automatisk. Du finner nyttige instruksjoner om hvordan du bruker dette regnearket, i cellene i denne kolonnen. Trykk på PIL NED for å komme i gang."]
["Skriv inn arrangementsnavn i cellen til høyre for å tilpasse tittelen på dette og andre regneark.","Arrangementsbudsjett for \nArrangementsnavn"]
["Etiketten for utgifter står i celle G3.",{"$nulls":5}," Utgifter"]
["Beregnet-etiketten er i celle G4 og Faktisk-etiketten er i celle H4.",{"$nulls":5},"Beregnet","Faktisk"]
["Etiketten for totale utgifter finnes i cellen til høyre. Beregnet totale utgifter beregnes automatisk i celle G5. Faktisk totalutgifter og datastolpe som viser faktisk totale utgifter, oppdateres automatisk i celle H5. Neste instruksjon finnes i celle A7.","Totale utgifter",{"$nulls":4},{"$f":"SUM(C12,C20,C26,C33,G12,G20,G25)","v":{"v":1145,"d":"kr 1,145.00"}},{"$f":"SUM(D12,D20,D26,D33,H12,H20,H25)","v":{"v":395,"d":"kr 395.00"}}]
[]
["Skriv inn stedsutgifter i tabellen som starter i cellen til høyre, og forfriskningsutgifter i tabellen som starter i celle F7. Neste instruksjon finnes i celle A14.","Sted","Beregnet","Faktisk",null,"Forfriskninger","Estimert","Faktisk"]
[null,"Utgifter for lokaler",{"v":500,"d":"kr 500.00"},{"v":250,"d":"kr 250.00"},null,"Mat"]
[null,"Stedspersonale",{"v":400,"d":"kr 400.00"},{"v":50,"d":"kr 50.00"},null,"Drikke"]
[null,"Utstyr",{"$nulls":3},"Duker"]
[null,"Bord og stoler",{"$nulls":3},"Ansatte og tips"]
[null,"Totalt",{"$f":"SUBTOTAL(109,Stedsutgifter[Beregnet])","v":{"v":900,"d":"kr 900.00"}},{"$f":"SUBTOTAL(109,Stedsutgifter[Faktisk])","v":{"v":300,"d":"kr 300.00"}},null,"Totalt",{"$f":"SUBTOTAL(109,Forfriskningsutgifter[Estimert])","v":{"v":0,"d":"kr 0.00"}},{"$f":"SUBTOTAL(109,Forfriskningsutgifter[Faktisk])","v":{"v":0,"d":"kr 0.00"}}]
[]
["Skriv inn dekorasjonsutgifter i tabellen som starter i cellen til høyre, og programutgifter i tabellen som starter i celle F14. Neste instruksjon er i celle A22.","Dekorasjoner","Estimert","Faktisk",null,"Program","Estimert","Faktisk"]
[null,"Blomster",{"v":200,"d":"kr 200.00"},{"v":50,"d":"kr 50.00"},null,"Underholdning"]
[null,"Lys",{"$nulls":3},"Talere"]
[null,"Belysning",{"$nulls":3},"Reise"]
[null,"Ballonger",{"$nulls":3},"Hotell"]
[null,"Papirrekvisita",{"$nulls":3},"Annet"]
[null,"Totalt",{"$f":"SUBTOTAL(109,Dekorasjonsutgifter[Estimert])","v":{"v":200,"d":"kr 200.00"}},{"$f":"SUBTOTAL(109,Dekorasjonsutgifter[Faktisk])","v":{"v":50,"d":"kr 50.00"}},null,"Totalt",{"$f":"SUBTOTAL(109,Programutgifter[Estimert])","v":{"v":0,"d":"kr 0.00"}},{"$f":"SUBTOTAL(109,Programutgifter[Faktisk])","v":{"v":0,"d":"kr 0.00"}}]
[]
["Skriv inn publisitetsutgifter i tabellen som starter i cellen til høyre, og premieutgifter i tabellen som starter i celle F22. Neste instruksjon er i celle A28.","Publisitet","Estimert","Faktisk",null,"Premier","Estimert","Faktisk"]
[null,"Grafikkarbeid",{"v":45,"d":"kr 45.00"},{"v":45,"d":"kr 45.00"},null,"Bånd/plaketter/pokaler"]
[null,"Kopiering/utskrift",{"$nulls":3},"Gaver"]
[null,"Porto",{"$nulls":3},"Totalt",{"$f":"SUBTOTAL(109,Premieutgifter[Estimert])","v":{"v":0,"d":"kr 0.00"}},{"$f":"SUBTOTAL(109,Premieutgifter[Faktisk])","v":{"v":0,"d":"kr 0.00"}}]
[null,"Totalt",{"$f":"SUBTOTAL(109,Publisitetsutgifter[Estimert])","v":{"v":45,"d":"kr 45.00"}},{"$f":"SUBTOTAL(109,Publisitetsutgifter[Faktisk])","v":{"v":45,"d":"kr 45.00"}}]
[]
["Skriv inn diverse utgifter i tabell fra cellen til høyre.","Diverse","Estimert","Faktisk"]
[null,"Telefon"]
[null,"Transport"]
[null,"Skrivepapir"]
[null,"Fakstjenester"]
[null,"Totalt",{"$f":"SUBTOTAL(109,DiverseUtgifter[Estimert])","v":{"v":0,"d":"kr 0.00"}},{"$f":"SUBTOTAL(109,DiverseUtgifter[Faktisk])","v":{"v":0,"d":"kr 0.00"}}]

{"sheet":"Inntekter","index":2,"n_rows":30,"n_cols":7,"rows_kept":30,"merged":[[1,1,1,6],[2,5,2,6]]}
["Skriv inn beregnet og faktisk inntekter fra hver kategori i de respektive tabellene i dette regnearket. Totalinntekt beregnes automatisk. Du finner nyttige instruksjoner om hvordan du bruker dette regnearket, i cellene i denne kolonnen. Trykk på PIL NED for å komme i gang."]
["Arrangementsnavnet oppdateres automatisk i cellen til høyre.",{"$f":"Utgifter!B2","v":"Arrangementsbudsjett for \nArrangementsnavn"}]
["Inntektsetiketten står i celle F3.",{"$nulls":4}," Inntekter"]
["Beregnet-etiketten er i celle F4 og Faktisk-etiketten er i celle G4.",{"$nulls":4},"Beregnet","Faktisk"]
["Etiketten for totale inntekter er i cellen til høyre. Beregnet totalsum inntekter beregnes automatisk i celle F5. Faktisk totalsum inntekter og datastolpe som viser faktiske totale inntekter, oppdateres automatisk i celle G5.","Totale inntekter",{"$nulls":3},{"$f":"SUM(Adgang[[#Totals],[Beregnet totalsum]],AnnonserIProgrammet[[#Totals],[Beregnet totalsum]],UtstillereOgLeverandører[[#Totals],[Beregnet totalsum]],SalgAvElement[[#Totals],[Beregnet totalsum]])","v":{"v":1936,"d":"kr 1,936.00"}},{"$f":"SUM(Adgang[[#Totals],[Faktisk totalsum]],AnnonserIProgrammet[[#Totals],[Faktisk totalsum]],UtstillereOgLeverandører[[#Totals],[Faktisk totalsum]],SalgAvElement[[#Totals],[Faktisk totalsum]])","v":{"v":1831,"d":"kr 1,831.00"}}]
["Adgang-etiketten finnes i cellen til høyre.","Adgang"]
["Skriv inn beregnet og faktisk antall gjester med billettsatser i tabellen som begynner i cellen til høyre. Beregnet og faktisk inntekter fra adgang beregnes automatisk. Neste instruksjon finnes i celle A12.","Beregnet","Faktisk","Type","Pris","Beregnet totalsum","Faktisk totalsum"]
[null,300,278,"Voksne @",{"v":5,"d":"kr 5.00"},{"$f":"B8*E8","v":{"v":1500,"d":"kr 1,500.00"}},{"$f":"C8*E8","v":{"v":1390,"d":"kr 1,390.00"}}]
[null,197,195,"Barn @",{"v":2,"d":"kr 2.00"},{"$f":"B9*E9","v":{"v":394,"d":"kr 394.00"}},{"$f":"C9*E9","v":{"v":390,"d":"kr 390.00"}}]
[null,42,51,"Annet @",{"v":1,"d":"kr 1.00"},{"v":42,"d":"kr 42.00"},{"v":51,"d":"kr 51.00"}]
[null," ",{"$nulls":3},{"$f":"SUBTOTAL(109,Adgang[Beregnet totalsum])","v":{"v":1936,"d":"kr 1,936.00"}},{"$f":"SUBTOTAL(109,Adgang[Faktisk totalsum])","v":{"v":1831,"d":"kr 1,831.00"}}]
["Etiketten for annonser i programmet finnes i cellen til høyre.","Annonser i programmet"]
["Skriv inn beregnet og faktisk antall annonser i programmet og annonsesatser i tabellen som begynner i cellen til høyre. Beregnede og faktiske inntekter fra annonser beregnes automatisk. Neste instruksjon finnes i celle A18.","Beregnet","Faktisk","Type","Pris","Beregnet totalsum","Faktisk totalsum"]
[{"$nulls":3},"For- og baksider @",null,{"$f":"B14*E14","v":{"v":0,"d":"kr 0.00"}},{"$f":"C14*E14","v":{"v":0,"d":"kr 0.00"}}]
[{"$nulls":3},"Halvsider @",null,{"$f":"B15*E15","v":{"v":0,"d":"kr 0.00"}},{"$f":"C15*E15","v":{"v":0,"d":"kr 0.00"}}]
[{"$nulls":3},"Kvartsider @",null,{"v":0,"d":"kr 0.00"},{"v":0,"d":"kr 0.00"}]
[null," ",{"$nulls":3},{"$f":"SUBTOTAL(109,AnnonserIProgrammet[Beregnet totalsum])","v":{"v":0,"d":"kr 0.00"}},{"$f":"SUBTOTAL(109,AnnonserIProgrammet[Faktisk totalsum])","v":{"v":0,"d":"kr 0.00"}}]
["Etikett for utstillere eller leverandører er i cellen til høyre.","Utstillere/leverandører"]
["Skriv inn beregnet og faktisk antall utstillere og leverandører og standsatser i tabellen som begynner i cellen til høyre. Beregnede og faktiske inntekter beregnes automatisk. Neste instruksjon finnes i celle A24.","Beregnet","Faktisk","Type","Pris","Beregnet totalsum","Faktisk totalsum"]
[{"$nulls":3},"Store stand @",null,{"$f":"B20*E20","v":{"v":0,"d":"kr 0.00"}},{"$f":"C20*E20","v":{"v":0,"d":"kr 0.00"}}]
[{"$nulls":3},"Middels stand @",null,{"$f":"B21*E21","v":{"v":0,"d":"kr 0.00"}},{"$f":"C21*E21","v":{"v":0,"d":"kr 0.00"}}]
[{"$nulls":3},"Små stand @",null,{"v":0,"d":"kr 0.00"},{"v":0,"d":"kr 0.00"}]
[null," ",{"$nulls":3},{"$f":"SUBTOTAL(109,UtstillereOgLeverandører[Beregnet totalsum])","v":{"v":0,"d":"kr 0.00"}},{"$f":"SUBTOTAL(109,UtstillereOgLeverandører[Faktisk totalsum])","v":{"v":0,"d":"kr 0.00"}}]
["Etiketten for salg av elementer finnes i cellen til høyre.","Salg av element"]
["Skriv inn beregnet og faktisk antall elementer solgt og elementsatser i tabellen som begynner i cellen til høyre. Beregnede og faktiske inntekter beregnes automatisk.","Beregnet","Faktisk","Type","Pris","Beregnet totalsum","Faktisk totalsum"]
[{"$nulls":3},"Elementer @",null,{"$f":"B26*E26","v":{"v":0,"d":"kr 0.00"}},{"$f":"C26*E26","v":{"v":0,"d":"kr 0.00"}}]
[{"$nulls":3},"Elementer @",null,{"$f":"B27*E27","v":{"v":0,"d":"kr 0.00"}},{"$f":"C27*E27","v":{"v":0,"d":"kr 0.00"}}]
[{"$nulls":3},"Elementer @",null,{"v":0,"d":"kr 0.00"},{"v":0,"d":"kr 0.00"}]
[{"$nulls":3},"Elementer @",null,{"v":0,"d":"kr 0.00"},{"v":0,"d":"kr 0.00"}]
[null," ",{"$nulls":3},{"$f":"SUBTOTAL(109,SalgAvElement[Beregnet totalsum])","v":{"v":0,"d":"kr 0.00"}},{"$f":"SUBTOTAL(109,SalgAvElement[Faktisk totalsum])","v":{"v":0,"d":"kr 0.00"}}]

{"sheet":"Sammendrag","index":3,"n_rows":9,"n_cols":4,"rows_kept":9,"merged":[[1,1,1,3],[2,2,2,3],[8,1,8,4],[9,1,9,3]]}
["Fortjeneste og tap-sammendrag og diagram som viser totale inntekter og utgifter, oppdateres automatisk i dette regnearket. Du finner nyttige instruksjoner om hvordan du bruker dette regnearket, i cellene i denne kolonnen. Trykk på PIL NED for å komme i gang."]
["Arrangementsnavn oppdateres automatisk i cellen til høyre.",{"$f":"Utgifter!B2","v":"Arrangementsbudsjett for \nArrangementsnavn"}]
["Etikett for fortjeneste og tap-sammendrag er i celle C3. Neste instruksjon finnes i celle A5.",null,"Fortjeneste og tap-sammendrag"]
[]
["Totalsumtabellen som starter i cellen til høyre, oppdateres automatisk Neste instruksjon er i celle A9.","Totalt","Beregnet","Faktisk"]
[null,"Totale inntekter",{"$f":"Inntekter!F5","v":{"v":1936,"d":"kr 1,936.00"}},{"$f":"Inntekter!G5","v":{"v":1831,"d":"kr 1,831.00"}}]
[null,"Totale utgifter",{"$f":"Utgifter!G5","v":{"v":1145,"d":"kr 1,145.00"}},{"$f":"Utgifter!H5","v":{"v":395,"d":"kr 395.00"}}]
[null,"Total fortjeneste (eller tap)",{"$f":"C6-C7","v":{"v":791,"d":"kr 791.00"}},{"$f":"D6-D7","v":{"v":1436,"d":"kr 1,436.00"}}]
["Gruppert stolpediagram som viser sammenligning av beregnet og faktisk totale inntekter og totale utgifter, er i cellen til høyre.","Gruppert stolpediagram som viser sammenligning av beregnet og faktisk totale inntekter og totale utgifter, er i denne cellen."]